fUSD/lending_fUSD_20250616
["ID","MTS","AMOUNT","RATE_DAILY","PERIOD"]
[366113105,1750069846852,-3424.31,0.00016438,2]
[366113107,1750069846861,-151.0,0.00016438,2]
[366113109,1750069846871,-1128.81,0.00016438,2]
[366113111,1750069846880,-1620.87,0.00016438,2]
[366113113,1750069846890,-529.59,0.00016438,2]
[366113115,1750069846900,-636.47,0.00016438,2]
[366113117,1750069846910,-151.0,0.00016438,2]
[366113119,1750069846919,-1356.36,0.00016438,2]
[366113121,1750069846929,-1473.42,0.00016438,2]
[366113123,1750069846939,-151.0,0.00016438,2]
[366113124,1750069846949,-490.0,0.00016438,2]
[366113126,1750069846958,-490.0,0.00016438,2]
[366113128,1750069846968,-490.0,0.00016438,2]
[366113130,1750069846978,-1909.08,0.00016438,2]
[366113132,1750069846988,-6194.61,0.00016438,2]
[366113134,1750069846997,-4207.19,0.00016438,2]
[366113137,1750069847014,-490.0,0.00016438,2]
[366113139,1750069847024,-490.0,0.00016438,2]
[366113141,1750069847036,-490.0,0.00016438,2]
[366113143,1750069847047,-1513.44,0.00016438,2]
[366113146,1750069847057,-151.0,0.00016438,2]
[366113148,1750069847068,-157.606675,0.00016438,2]
[366113150,1750069847078,-1222.52,0.00016438,2]
[366113152,1750069847088,-495.94,0.00016438,2]
[366113154,1750069847098,-4723.24,0.00016438,2]
[366113156,1750069847108,-3838.35,0.00016438,2]
[366113158,1750069847120,-490.0,0.00016438,2]
[366113160,1750069847131,-490.0,0.00016438,2]
[366113162,1750069847141,-490.0,0.00016438,2]
[366113164,1750069847152,-490.0,0.00016438,2]
[366113166,1750069847163,-2066.45,0.00016438,2]
[366113168,1750069847174,-1506.54,0.00016438,2]
[366113170,1750069847184,-2097.23,0.00016438,2]
[366113172,1750069847195,-490.0,0.00016438,2]
[366113174,1750069847206,-1516.47,0.00016438,2]
[366113176,1750069847217,-490.0,0.00016438,2]
[366113179,1750069847227,-490.0,0.00016438,2]
[366113181,1750069847237,-1364.61,0.00016438,2]
[366113183,1750069847248,-1104.07,0.00016438,2]
[366113185,1750069847258,-490.0,0.00016438,2]
[366113187,1750069847269,-8390.43,0.00016438,2]
[366113189,1750069847280,-891.12,0.00016438,2]
[366113191,1750069847289,-920.53,0.00016438,2]
[366113193,1750069847300,-490.0,0.00016438,2]
[366113195,1750069847310,-1785.82,0.00016438,2]
[366113197,1750069847320,-1149.52,0.00016438,2]
[366113199,1750069847330,-1675.71,0.00016438,2]
[366113201,1750069847340,-500.0,0.00016438,2]
[366113203,1750069847350,-500.0,0.00016438,2]
[366113205,1750069847361,-1413.82,0.00016438,2]
[366113207,1750069847371,-151.0,0.00016438,2]
[366113209,1750069847383,-151.0,0.00016438,2]
[366113211,1750069847393,-766.27,0.00016438,2]
[366113213,1750069847403,-502.5,0.00016438,2]
[366113215,1750069847414,-265.692797,0.00016438,2]
[366113217,1750069847425,-1028.43,0.00016438,2]
[366113219,1750069847435,-7146.48,0.00016438,2]
[366113222,1750069847446,-490.0,0.00016438,2]
[366113224,1750069847463,-490.0,0.00016438,2]
[366113226,1750069847473,-265.692797,0.00016438,2]
[366113228,1750069847484,-2228.97,0.00016438,2]
[366113230,1750069847494,-300.0,0.00016438,2]
[366113232,1750069847505,-1346.323856,0.00016438,2]
[366113234,1750069847514,-1346.323856,0.00016438,2]
[366113236,1750069847524,-265.692797,0.00016438,2]
[366113238,1750069847535,-265.692797,0.00016438,2]
[366113240,1750069847545,-1346.323856,0.00016438,2]
[366113242,1750069847556,-490.0,0.00016438,2]
[366113244,1750069847567,-1346.323856,0.00016438,2]
[366113247,1750069847578,-3305.87,0.00016438,2]
[366113249,1750069847588,-1721.84,0.00016438,2]
[366113251,1750069847598,-490.0,0.00016438,2]
[366113253,1750069847609,-178.524345,0.00016438,2]
[366113255,1750069847618,-6643.72,0.00016438,2]
[366113257,1750069847629,-823.58,0.00016438,2]
[366113259,1750069847641,-1703.38,0.00016438,2]
[366113261,1750069847651,-1036.68,0.00016438,2]
[366113263,1750069847661,-490.0,0.00016438,2]
[366113265,1750069847671,-745.71,0.00016438,2]
[366113286,1750069848143,-1760.3,0.00016438,2]
[366113288,1750069848154,-178.524345,0.00016438,2]
[366113290,1750069848165,-708.05,0.00016438,2]
[366113292,1750069848175,-1924.82,0.00016438,2]
[366113293,1750069848186,-1016.98,0.00016438,2]
[366113294,1750069848197,-2075.64,0.00016438,2]
[366113295,1750069848208,-643.76,0.00016438,2]
[366113297,1750069848219,-1359.18,0.00016438,2]
[366113298,1750069848230,-1215.3,0.00016438,2]
[366113299,1750069848240,-1338.81,0.00016438,2]
[366113300,1750069848251,-2079.3,0.00016438,2]
[366113302,1750069848260,-1157.41,0.00016438,2]
[366113303,1750069848271,-490.0,0.00016438,2]
[366113304,1750069848281,-264.61577739,0.00016438,2]
[366113305,1750069848291,-736.5,0.00016438,2]
[366113307,1750069848302,-490.0,0.00016438,2]
[366113308,1750069848313,-490.0,0.00016438,2]
[366113309,1750069848324,-490.0,0.00016438,2]
[366113310,1750069848335,-623.29,0.00016438,2]
[366113312,1750069848345,-899.55,0.00016438,2]
[366113313,1750069848356,-490.0,0.00016438,2]
[366113314,1750069848366,-3175.0,0.00016438,2]
[366113315,1750069848377,-490.0,0.00016438,2]
[366113316,1750069848387,-490.0,0.00016438,2]
[366113317,1750069848397,-1159.92,0.00016438,2]
[366113318,1750069848407,-1076.5,0.00016438,2]
[366113319,1750069848417,-1679.78,0.00016438,2]
[366113320,1750069848427,-490.0,0.00016438,2]
[366113321,1750069848438,-490.0,0.00016438,2]
[366113322,1750069848463,-1276.49,0.00016438,2]
[366113324,1750069848475,-490.0,0.00016438,2]
[366113325,1750069848485,-490.0,0.00016438,2]
[366113326,1750069848497,-1063.16,0.00016438,2]
[366113327,1750069848507,-1018.64,0.00016438,2]
[366113329,1750069848518,-490.0,0.00016438,2]
[366113330,1750069848529,-741.89,0.00016438,2]
[366113331,1750069848541,-3165.37,0.00016438,2]
[366113333,1750069848552,-490.0,0.00016438,2]
[366113334,1750069848563,-490.0,0.00016438,2]
[366113335,1750069848574,-490.0,0.00016438,2]
[366113336,1750069848587,-734.51,0.00016438,2]
[366113338,1750069848597,-490.0,0.00016438,2]
[366113339,1750069848609,-490.0,0.00016438,2]
[366113340,1750069848619,-150.0,0.00016438,2]
[366113341,1750069848630,-1965.11,0.00016438,2]
[366113342,1750069848642,-2560.82,0.00016438,2]
[366113343,1750069848653,-490.0,0.00016438,2]
[366113345,1750069848663,-490.0,0.00016438,2]
[366113346,1750069848674,-3469.35,0.00016438,2]
[366113347,1750069848685,-490.0,0.00016438,2]
[366113348,1750069848696,-490.0,0.00016438,2]
[366113349,1750069848707,-677.8,0.00016438,2]
[366113350,1750069848717,-490.0,0.00016438,2]
[366113351,1750069848728,-21131.57,0.00016438,2]
[366113352,1750069848739,-1052.88,0.00016438,2]
[366113353,1750069848750,-1452.49,0.00016438,2]
[366113354,1750069848761,-490.0,0.00016438,2]
[366113355,1750069848772,-1043.06,0.00016438,2]
[366113356,1750069848783,-490.0,0.00016438,2]
[366113357,1750069848793,-490.0,0.00016438,2]
[366113358,1750069848803,-917.23,0.00016438,2]
[366113359,1750069848814,-2693.73,0.00016438,2]
[366113361,1750069848824,-490.0,0.00016438,2]
[366113362,1750069848834,-490.0,0.00016438,2]
[366113364,1750069848844,-490.0,0.00016438,2]
[366113366,1750069848854,-490.0,0.00016438,2]
[366113368,1750069848865,-1007.31,0.00016438,2]
[366113370,1750069848882,-490.0,0.00016438,2]
[366113372,1750069848893,-1140.68,0.00016438,2]
[366113373,1750069848903,-805.86,0.00016438,2]
[366113375,1750069848915,-1541.66,0.00016438,2]
[366113377,1750069848926,-151.0,0.00016438,2]
[366113378,1750069848937,-754.41,0.00016438,2]
[366113380,1750069848947,-151.0,0.00016438,2]
[366113382,1750069848959,-490.0,0.00016438,2]
[366113383,1750069848970,-982.92,0.00016438,2]
[366113385,1750069848981,-1362.58,0.00016438,2]
[366113386,1750069848992,-9123.73,0.00016438,2]
[366113388,1750069849004,-499.72,0.00016438,2]
[366113390,1750069849015,-491.05134449,0.00016438,2]
[366113391,1750069849026,-1038.03,0.00016438,2]
[366113393,1750069849039,-490.0,0.00016438,2]
[366113395,1750069849051,-490.0,0.00016438,2]
[366113397,1750069849062,-490.0,0.00016438,2]
[366113398,1750069849073,-19733.24,0.00016438,2]
[366113400,1750069849085,-150.0,0.00016442,2]
[366113402,1750069849096,-150.0,0.00016444,2]
[366113404,1750069849107,-150.0,0.00016444,2]
[366113405,1750069849119,-150.0,0.00016447,2]
[366113407,1750069849130,-150.0,0.00016447,2]
[366113409,1750069849141,-150.0,0.00016448,2]
[366113411,1750069849152,-150.0,0.00016454,2]
[366113412,1750069849163,-150.0,0.00016457,2]
[366113414,1750069849174,-150.0,0.0001646,2]
[366113416,1750069849186,-150.0,0.00016461,2]
[366113417,1750069849197,-2000.0,0.00016464,2]
[366113418,1750069849208,-500.0,0.00016464,2]
[366113420,1750069849219,-2000.0,0.00016465,2]
[366113422,1750069849230,-2000.0,0.00016465,2]
[366113424,1750069849241,-500.0,0.00016465,2]
[366113425,1750069849252,-200.0,0.00016465,2]
[366113426,1750069849264,-150.0,0.00016465,2]
[366113427,1750069849275,-150.0,0.00016466,2]
[366113428,1750069849287,-150.0,0.00016466,2]
[366113429,1750069849298,-150.0,0.00016466,2]
[366113430,1750069849315,-500.0,0.00016467,2]
[366113431,1750069849327,-150.0,0.00016471,2]
[366113432,1750069849337,-150.0,0.00016473,2]
[366113433,1750069849348,-150.0,0.00016479,2]
[366113434,1750069849359,-150.0,0.0001648,2]
[366113435,1750069849370,-150.0,0.00016481,2]
[366113436,1750069849381,-150.0,0.00016481,2]
[366113437,1750069849392,-150.0,0.00016483,2]
[366113438,1750069849403,-150.0,0.00016483,2]
[366113439,1750069849414,-150.0,0.00016483,2]
[366113440,1750069849425,-833.8156298,0.00016485,2]
[366113441,1750069849436,-150.0,0.00016488,2]
[366113442,1750069849448,-175.28608274,0.00016489,2]
[366113443,1750069849458,-157.48677891,0.00016489,2]
[366113444,1750069849469,-150.0,0.0001649,2]
[366113445,1750069849481,-150.0,0.00016495,2]
[366113446,1750069849492,-150.0,0.00016498,2]
[366113447,1750069849503,-117561.4420915,0.000165,2]
[366113448,1750069849514,-150.0,0.000165,2]
[366113449,1750069849525,-771.368373,0.000165,2]
[366113450,1750069849536,-771.368373,0.000165,2]
[366113451,1750069849547,-153.362934,0.000165,2]
[366113452,1750069849558,-151.0,0.000165,2]
[366113453,1750069849569,-151.0,0.000165,2]
[366113454,1750069849580,-151.0,0.000165,2]
[366113455,1750069849591,-1346.323856,0.000165,2]
[366113456,1750069849603,-1346.323856,0.000165,2]
[366113457,1750069849613,-178.524345,0.000165,2]
[366113458,1750069849623,-178.524345,0.000165,2]
[366113459,1750069849634,-151.0,0.000165,2]
[366113460,1750069849644,-150.0,0.00016501,2]
[366113461,1750069849655,-150.0,0.00016502,2]
[366113462,1750069849666,-150.0,0.00016502,2]
[366113463,1750069849677,-156.31236705,0.00016502,2]
[366113464,1750069849687,-150.0,0.00016503,2]
[366113465,1750069849698,-150.0,0.00016504,2]
[366113466,1750069849709,-150.0,0.00016505,2]
[366113467,1750069849721,-150.0,0.00016507,2]
[366113468,1750069849732,-150.0,0.00016508,2]
[366113469,1750069849748,-150.0,0.00016508,2]
[366113470,1750069849760,-150.0,0.0001651,2]
[366113471,1750069849772,-150.0,0.00016517,2]
[366113472,1750069849782,-150.0,0.00016518,2]
[366113473,1750069849794,-150.0,0.0001652,2]
[366113474,1750069849806,-150.0,0.0001652,2]
[366113475,1750069849817,-150.0,0.00016521,2]
[366113476,1750069849827,-150.0,0.00016522,2]
[366113477,1750069849839,-150.0,0.00016522,2]
[366113478,1750069849849,-150.0,0.00016524,2]
[366113479,1750069849860,-150.0,0.0001653,2]
[366113480,1750069849871,-150.0,0.0001653,2]
[366113481,1750069849881,-150.0,0.00016534,2]
[366113482,1750069849892,-150.0,0.00016543,2]
[366113483,1750069849903,-150.0,0.00016545,2]
[366113484,1750069849913,-150.0,0.00016547,2]
[366113485,1750069849923,-150.0,0.00016549,2]
[366113486,1750069849934,-150.0,0.00016555,2]
[366113487,1750069849945,-150.0,0.00016555,2]
[366113488,1750069849956,-467.317,0.00016559,2]
[366113489,1750069849967,-150.0,0.00016559,2]
[366113490,1750069849977,-150.0,0.00016562,2]
[366113491,1750069849988,-150.0,0.00016563,2]
[366113492,1750069849999,-150.0,0.00016563,2]
[366113493,1750069850010,-150.0,0.00016563,2]
[366113494,1750069850021,-150.0,0.00016567,2]
[366113495,1750069850032,-1000.0,0.00016569,2]
[366113496,1750069850048,-150.0,0.00016572,2]
[366113497,1750069850059,-171.3747989,0.00016579,2]
[366113498,1750069850070,-151.0,0.00016584,2]
[366113499,1750069850080,-265.692797,0.00016584,2]
[366113500,1750069850091,-265.692797,0.00016584,2]
[366113501,1750069850102,-156.31236705,0.00016585,2]
[366113502,1750069850112,-1039.294323,0.00016589,2]
[366113503,1750069850124,-151.0,0.00016589,2]
[366113504,1750069850134,-1039.294323,0.00016589,2]
[366113505,1750069850144,-151.0,0.00016589,2]
[366113506,1750069850154,-212.203573,0.00016589,2]
[366113507,1750069850164,-212.203573,0.00016589,2]
[366113508,1750069850184,-151.0,0.00016589,2]
[366113509,1750069850196,-151.0,0.00016589,2]
[366113510,1750069850206,-151.0,0.00016589,2]
[366113511,1750069850217,-329.564456,0.00016589,2]
[366113512,1750069850228,-329.564456,0.00016589,2]
[366113513,1750069850239,-217.900123,0.00016589,2]
[366113514,1750069850250,-217.900123,0.00016589,2]
[366113515,1750069850262,-369.906748,0.00016589,2]
[366113516,1750069850272,-151.0,0.00016589,2]
[366113517,1750069850283,-369.906748,0.00016589,2]
[366113518,1750069850294,-151.0,0.00016589,2]
[366113519,1750069850304,-151.0,0.00016589,2]
[366113520,1750069850315,-151.0,0.00016589,2]
[366113521,1750069850325,-151.0,0.00016589,2]
[366113522,1750069850336,-300.580708,0.00016589,2]
[366113523,1750069850347,-151.0,0.00016589,2]
[366113524,1750069850357,-224.697686,0.00016589,2]
[366113525,1750069850369,-224.697686,0.00016589,2]
[366113526,1750069850379,-151.0,0.00016589,2]
[366113527,1750069850390,-151.0,0.00016589,2]
[366113528,1750069850400,-223.231262,0.00016589,2]
[366113529,1750069850410,-223.231262,0.00016589,2]
[366113530,1750069850421,-210.330796,0.00016589,2]
[366113531,1750069850431,-210.330796,0.00016589,2]
[366113532,1750069850443,-504.113114,0.00016589,2]
[366113533,1750069850453,-504.113114,0.00016589,2]
[366113534,1750069850464,-151.0,0.00016589,2]
[366113535,1750069850476,-438.628682,0.00016589,2]
[366113536,1750069850486,-151.0,0.00016589,2]
[366113537,1750069850497,-438.628682,0.00016589,2]
[366113538,1750069850507,-151.0,0.00016589,2]
[366113539,1750069850517,-151.0,0.00016589,2]
[366113540,1750069850527,-151.0,0.00016589,2]
[366113541,1750069850538,-151.0,0.00016589,2]
[366113542,1750069850549,-151.0,0.00016589,2]
[366113543,1750069850559,-151.0,0.00016589,2]
[366113544,1750069850570,-401.199273,0.00016589,2]
[366113545,1750069850581,-401.199273,0.00016589,2]
[366113546,1750069850592,-328.333,0.00016589,2]
[366113547,1750069850602,-359.130399,0.00016589,2]
[366113548,1750069850613,-328.333,0.00016589,2]
[366113549,1750069850623,-359.130399,0.00016589,2]
[366113550,1750069850634,-304.236761,0.00016589,2]
[366113551,1750069850645,-151.0,0.00016589,2]
[366113552,1750069850656,-304.236761,0.00016589,2]
[366113553,1750069850666,-290.65342,0.00016589,2]
[366113554,1750069850677,-2687.7043215,0.00016589,2]
[366113555,1750069850687,-56398.5816852,0.00016589,2]
[366113556,1750069850698,-771.368373,0.00016589,2]
[366113557,1750069850708,-771.368373,0.00016589,2]
[366113558,1750069850718,-2687.3631137,0.00016589,2]
[366113559,1750069850729,-309.65892,0.00016589,2]
[366113560,1750069850739,-217.623931,0.00016589,2]
[366113561,1750069850748,-309.65892,0.00016589,2]
[366113562,1750069850758,-217.623931,0.00016589,2]
[366113563,1750069850768,-1474.166357,0.00016589,2]
[366113564,1750069850778,-1474.166357,0.00016589,2]
[366113565,1750069850790,-151.0,0.00016589,2]
[366113566,1750069850800,-151.0,0.00016589,2]
[366113567,1750069850999,-151.0,0.00016589,2]
[366113568,1750069851012,-151.0,0.00016589,2]
[366113569,1750069851023,-7686.3311334,0.00016589,2]
[366113570,1750069851032,-151.0,0.00016589,2]
[366113571,1750069851046,-178.524345,0.00016589,2]
[366113572,1750069851057,-178.524345,0.00016589,2]
[366113573,1750069851067,-45823.6040671,0.00016589,2]
[366113574,1750069851077,-720.42988017,0.00016591,2]
[366113575,1750069851088,-824.17429177,0.00016595,2]
[366113576,1750069851098,-151.0,0.00016596,2]
[366113577,1750069851109,-151.0,0.00016596,2]
[366113578,1750069851121,-212.203573,0.00016596,2]
[366113579,1750069851132,-212.203573,0.00016596,2]
[366113580,1750069851142,-151.0,0.00016596,2]
[366113581,1750069851154,-151.0,0.00016596,2]
[366113582,1750069851163,-329.564456,0.00016596,2]
[366113583,1750069851173,-329.564456,0.00016596,2]
[366113584,1750069851182,-217.900123,0.00016596,2]
[366113585,1750069851192,-217.900123,0.00016596,2]
[366113586,1750069851201,-369.906748,0.00016596,2]
[366113587,1750069851211,-151.0,0.00016596,2]
[366113588,1750069851220,-369.906748,0.00016596,2]
[366113589,1750069851231,-151.0,0.00016596,2]
[366113590,1750069851240,-151.0,0.00016596,2]
[366113591,1750069851251,-224.697686,0.00016596,2]
[366113592,1750069851260,-224.697686,0.00016596,2]
[366113593,1750069851270,-151.0,0.00016596,2]
[366113594,1750069851281,-151.0,0.00016596,2]
[366113595,1750069851291,-223.231262,0.00016596,2]
[366113596,1750069851300,-223.231262,0.00016596,2]
[366113597,1750069851309,-504.113114,0.00016596,2]
[366113598,1750069851320,-504.113114,0.00016596,2]
[366113599,1750069851329,-151.0,0.00016596,2]
[366113600,1750069851339,-438.628682,0.00016596,2]
[366113601,1750069851348,-438.628682,0.00016596,2]
[366113602,1750069851357,-151.0,0.00016596,2]
[366113603,1750069851367,-151.0,0.00016596,2]
[366113604,1750069851376,-309.65892,0.00016596,2]
[366113605,1750069851386,-309.65892,0.00016596,2]
[366113606,1750069851395,-151.0,0.00016596,2]
[366113607,1750069851404,-151.0,0.00016596,2]
[366113608,1750069851414,-12481.99542224,0.00016598,2]
[366113609,1750069851423,-151.0,0.00016598,2]
[366113610,1750069851433,-151.0,0.00016598,2]
[366113611,1750069851443,-151.0,0.00016598,2]
[366113612,1750069851453,-151.0,0.00016598,2]
[366113613,1750069851462,-151.0,0.00016598,2]
[366113614,1750069851472,-151.0,0.00016598,2]
[366113615,1750069851482,-281.915627,0.00016598,2]
[366113616,1750069851492,-248.136437,0.00016598,2]
[366113617,1750069851501,-151.0,0.00016598,2]
[366113618,1750069851511,-248.136437,0.00016598,2]
[366113619,1750069851521,-291.565943,0.00016598,2]
[366113620,1750069851530,-151.0,0.00016598,2]
[366113621,1750069851539,-151.0,0.00016598,2]
[366113622,1750069851549,-151.0,0.00016598,2]
[366113623,1750069851558,-343.756474,0.00016598,2]
[366113624,1750069851568,-343.756474,0.00016598,2]
[366113625,1750069851577,-151.0,0.00016598,2]
[366113626,1750069851586,-273.413564,0.00016598,2]
[366113627,1750069851595,-286.093646,0.00016598,2]
[366113628,1750069851605,-286.093646,0.00016598,2]
[366113629,1750069851614,-151.0,0.00016598,2]
[366113630,1750069851623,-526.101731,0.00016598,2]
[366113631,1750069851632,-526.101731,0.00016598,2]
[366113632,1750069851641,-154.574086,0.00016598,2]
[366113633,1750069851650,-151.0,0.00016598,2]
[366113634,1750069851659,-151.0,0.00016598,2]
[366113635,1750069851669,-151.0,0.00016598,2]
[366113636,1750069851678,-151.0,0.00016598,2]
[366113637,1750069851687,-151.493084,0.00016598,2]
[366113638,1750069851698,-321.629011,0.00016598,2]
[366113639,1750069851708,-321.629011,0.00016598,2]
[366113640,1750069851717,-151.0,0.00016598,2]
[366113641,1750069851727,-151.0,0.00016598,2]
[366113642,1750069851736,-321.629011,0.00016598,2]
[366113643,1750069851746,-151.0,0.00016598,2]
[366113644,1750069851755,-321.629011,0.00016598,2]
[366113645,1750069851765,-151.0,0.00016598,2]
[366113646,1750069851774,-151.0,0.00016598,2]
[366113647,1750069851783,-151.0,0.00016598,2]
[366113648,1750069851793,-151.0,0.00016598,2]
[366113649,1750069851802,-160.050184,0.00016598,2]
[366113650,1750069851811,-160.050184,0.00016598,2]
[366113651,1750069851821,-151.0,0.00016598,2]
[366113652,1750069851830,-151.0,0.00016598,2]
[366113653,1750069851839,-118.17071912,0.00016598,2]
[366113654,1750069852411,-32.82928088,0.00016598,2]
[366113655,1750069852421,-151.0,0.00016598,2]
[366113656,1750069852431,-151.0,0.00016598,2]
[366113657,1750069852440,-151.0,0.00016598,2]
[366113658,1750069852451,-50.32071912,0.00016598,2]
[366113659,1750069854005,-490.0,0.00016438,2]
[366113660,1750069854014,-403.922873,0.00016438,2]
[366113661,1750069854024,-403.922873,0.00016438,2]
[366113662,1750069854034,-403.922873,0.00016589,2]
[366113663,1750069854048,-100.67928088,0.00016598,2]
[366113664,1750069854058,-151.0,0.00016598,2]
[366113665,1750069854068,-151.0,0.00016598,2]
[366113666,1750069854078,-151.0,0.00016598,2]
[366113667,1750069854088,-151.0,0.00016598,2]
[366113668,1750069854098,-151.0,0.00016598,2]
[366113669,1750069854107,-151.0,0.00016598,2]
[366113670,1750069854252,-386.781064,0.00016598,2]
[366113671,1750069854262,-78.38203612,0.00016598,2]
[366113672,1750069854299,-308.39902788,0.00016598,2]
[366113673,1750069854310,-386.781064,0.00016598,2]
[366113674,1750069854319,-386.781064,0.00016598,2]
[366113675,1750069854329,-1000.0,0.00016598,2]
[366113676,1750069854338,-812.70884412,0.00016598,2]
[366113677,1750069854351,-187.29115588,0.00016598,2]
[366113678,1750069854361,-1000.0,0.00016598,2]
[366113679,1750069854374,-1000.0,0.00016598,2]
[366113680,1750069854384,-1000.0,0.00016598,2]
[366113681,1750069854395,-1000.0,0.00016598,2]
[366113682,1750069854404,-1000.0,0.00016598,2]
[366113683,1750069854414,-1000.0,0.00016598,2]
[366113684,1750069854424,-1000.0,0.00016598,2]
[366113685,1750069854434,-1000.0,0.00016598,2]
[366113686,1750069854444,-1000.0,0.00016598,2]
[366113687,1750069854455,-1000.0,0.00016598,2]
[366113688,1750069854465,-1000.0,0.00016598,2]
[366113689,1750069854475,-1000.0,0.00016598,2]
[366113690,1750069854485,-1000.0,0.00016598,2]
[366113691,1750069854495,-1000.0,0.00016598,2]
[366113692,1750069854505,-1000.0,0.00016598,2]
[366113693,1750069854515,-1000.0,0.00016598,2]
[366113694,1750069854526,-1000.0,0.00016598,2]
[366113695,1750069854535,-1000.0,0.00016598,2]
[366113696,1750069854545,-1000.0,0.00016598,2]
[366113697,1750069854554,-1000.0,0.00016598,2]
[366113698,1750069854564,-1000.0,0.00016598,2]
[366113699,1750069854574,-1000.0,0.00016598,2]
[366113700,1750069854584,-1000.0,0.00016598,2]
[366113701,1750069854593,-1000.0,0.00016598,2]
[366113702,1750069854603,-1000.0,0.00016598,2]
[366113703,1750069854613,-1000.0,0.00016598,2]
[366113704,1750069854624,-265.02414885,0.00016598,2]
[366113705,1750069854634,-186.430742,0.00016598,2]
[366113706,1750069854644,-186.430742,0.00016598,2]
[366113707,1750069854653,-151.0,0.00016598,2]
[366113708,1750069854663,-151.0,0.00016598,2]
[366113709,1750069854672,-151.0,0.00016598,2]
[366113710,1750069854683,-626.560949,0.00016598,2]
[366113711,1750069854692,-626.560949,0.00016598,2]
[366113712,1750069854703,-626.560949,0.00016598,2]
[366113713,1750069854712,-626.560949,0.00016598,2]
[366113714,1750069854722,-151.0,0.00016598,2]
[366113715,1750069854731,-1047.847195,0.00016598,2]
[366113716,1750069854741,-1047.847195,0.00016598,2]
[366113717,1750069854751,-236.25738,0.00016598,2]
[366113718,1750069854760,-177.905353,0.00016598,2]
[366113719,1750069854770,-177.905353,0.00016598,2]
[366113720,1750069854780,-151.0,0.00016598,2]
[366113721,1750069854790,-151.0,0.00016598,2]
[366113722,1750069854800,-151.0,0.00016598,2]
[366113723,1750069854809,-151.0,0.00016598,2]
[366113724,1750069854819,-864.783927,0.00016598,2]
[366113725,1750069854829,-864.783927,0.00016598,2]
[366113726,1750069854840,-151.0,0.00016598,2]
[366113727,1750069854849,-281.919183,0.00016598,2]
[366113728,1750069854859,-281.919183,0.00016598,2]
[366113729,1750069854870,-151.0,0.00016598,2]
[366113730,1750069854880,-151.0,0.00016598,2]
[366113731,1750069854893,-924.224335,0.00016598,2]
[366113732,1750069854903,-924.224335,0.00016598,2]
[366113733,1750069854912,-254.901979,0.00016598,2]
[366113734,1750069854922,-222.995545,0.00016598,2]
[366113735,1750069854932,-804.365865,0.00016598,2]
[366113736,1750069854942,-804.365865,0.00016598,2]
[366113737,1750069854952,-1039.294323,0.00016598,2]
[366113738,1750069854961,-151.0,0.00016598,2]
[366113739,1750069854971,-1039.294323,0.00016598,2]
[366113740,1750069854981,-151.0,0.00016598,2]
[366113741,1750069854991,-212.203573,0.00016598,2]
[366113742,1750069855001,-212.203573,0.00016598,2]
[366113743,1750069855011,-151.0,0.00016598,2]
[366113744,1750069855021,-151.0,0.00016598,2]
[366113745,1750069855031,-151.0,0.00016598,2]